Workbook

Sheet Лист1
E3: a3 | F3: a2 | G3: a1 | H3: a0
G4: =LINEST(G13:G25,C13:C25) -> 0.2776070977 | H4: 1.494530995e-17
F5: =LINEST(G13:G25,C13:D25) -> 1.543577346e-17 | G5: 0.2776070977 | H5: -3.907989718e-17
E6: =LINEST(G13:G25,C13:E25) -> -0.09180150775 | F6: -3.084942109e-17 | G6: 0.8513665211 | H6: 1.229182838e-16
D10: y=a0+a1*x+a2*x^2+a3*x^3
C12: x | D12: x^2 | E12: x^3 | G12: Yreal | H12: Rashet1 | I12: Rashet2 | J12: Rashet3
C13: -3 | D13: =C13^2 -> 9 | E13: =C13^3 -> -27 | G13: =SIN(C13) -> -0.1411200081 | H13: =$H$4+$G$4*C13 -> -0.832821293 | I13: =$H$5+$G$5*C13+$F$5*D13 -> -0.832821293 | J13: =$H$6+$G$6*C13+$F$6*D13+$E$6*E13 -> -0.07545885406
C14: -2.5 | D14: =C14^2 -> 6.25 | E14: =C14^3 -> -15.625 | G14: =SIN(C14) -> -0.5984721441 | H14: =$H$4+$G$4*C14 -> -0.6940177442 | I14: =$H$5+$G$5*C14+$F$5*D14 -> -0.6940177442 | J14: =$H$6+$G$6*C14+$F$6*D14+$E$6*E14 -> -0.6940177442
C15: -2 | D15: 4 | E15: -8 | G15: =SIN(C15) -> -0.9092974268 | H15: =$H$4+$G$4*C15 -> -0.5552141954 | I15: -0.5552141954 | J15: -0.9683209802
C16: -1.5 | D16: 2.25 | E16: -3.375 | G16: =SIN(C16) -> -0.9974949866 | H16: =$H$4+$G$4*C16 -> -0.4164106465 | I16: -0.4164106465 | J16: -0.967219693
C17: -1 | D17: 1 | E17: -1 | G17: =SIN(C17) -> -0.8414709848 | H17: =$H$4+$G$4*C17 -> -0.2776070977 | I17: -0.2776070977 | J17: -0.7595650134
C18: -0.5 | D18: 0.25 | E18: -0.125 | G18: =SIN(C18) -> -0.4794255386 | H18: =$H$4+$G$4*C18 -> -0.1388035488 | I18: -0.1388035488 | J18: -0.4142080721
C19: 0 | D19: 0 | E19: 0 | G19: =SIN(C19) -> 0 | H19: =$H$4+$G$4*C19 -> 1.494530995e-17 | I19: -3.907989718e-17 | J19: 1.229182838e-16
C20: 0.5 | D20: 0.25 | E20: 0.125 | G20: =SIN(C20) -> 0.4794255386 | H20: =$H$4+$G$4*C20 -> 0.1388035488 | I20: 0.1388035488 | J20: 0.4142080721
C21: 1 | D21: 1 | E21: 1 | G21: =SIN(C21) -> 0.8414709848 | H21: =$H$4+$G$4*C21 -> 0.2776070977 | I21: 0.2776070977 | J21: 0.7595650134
C22: 1.5 | D22: 2.25 | E22: 3.375 | G22: =SIN(C22) -> 0.9974949866 | H22: =$H$4+$G$4*C22 -> 0.4164106465 | I22: 0.4164106465 | J22: 0.967219693
C23: 2 | D23: 4 | E23: 8 | G23: =SIN(C23) -> 0.9092974268 | H23: =$H$4+$G$4*C23 -> 0.5552141954 | I23: 0.5552141954 | J23: 0.9683209802
C24: 2.5 | D24: 6.25 | E24: 15.625 | G24: =SIN(C24) -> 0.5984721441 | H24: =$H$4+$G$4*C24 -> 0.6940177442 | I24: 0.6940177442 | J24: 0.6940177442
C25: 3 | D25: 9 | E25: 27 | G25: =SIN(C25) -> 0.1411200081 | H25: =$H$4+$G$4*C25 -> 0.832821293 | I25: 0.832821293 | J25: 0.07545885406

Sheet Лист2
E2: a6 | F2: a5 | G2: a4 | H2: a3 | I2: a2 | J2: a1 | K2: a0
I3: =LINEST(J12:J60,D12:E60) -> 0 | J3: 0.2202447045 | K3: -0.1045248649
G4: =LINEST(J12:J60,D12:G60) -> -0.2040683191 | H4: 8.736370371e-18 | I4: -8.02499048e-18 | J4: 0.2202447045 | K4: 0.7117484113
A5: Max= | B5: 1.713690594 | E5: =LINEST(J12:J60,D12:I60) -> -3.642864637e-18 | F5: -0.08942491131 | G5: -0.2040683191 | H5: -2.280682937e-17 | I5: 4.300416933e-17 | J5: 0.8462190836 | K5: 0.7117484113
A6: x1= | B6: 1.774984717
A7: x2= | B7: -0.001459121704
E9: y=a0+a1*x1+a2*x2+a3*x1^2+a4*x2^2+a5*x1^3+a6*x2^3
D11: x1 | E11: x2 | F11: x1^2 | G11: x2^2 | H11: x1^3 | I11: x2^3 | J11: Yreal | K11: Raschet1 | L11: Raschet2 | M11: Raschet3
D12: -3 | E12: -3 | F12: =D12^2 -> 9 | G12: =E12^2 -> 9 | H12: =D12^3 -> -27 | I12: =E12^3 -> -27 | J12: =SIN(D12)+COS(E12) -> -1.131112505 | K12: =$K$3+$J$3*D12+$I$3*E12 -> -0.7652589784 | L12: =$K$4+$J$4*D12+$I$4*E12+$H$4*F12+$G$4*G12 -> -1.785600574 | M12: =$K$5+$J$5*D12+$I$5*E12+$H$5*F12+$G$5*G12+$F$5*H12+$E$5*I12 -> -1.249051106
D13: -3 | E13: -2 | F13: =D13^2 -> 9 | G13: =E13^2 -> 4 | H13: =D13^3 -> -27 | I13: =E13^3 -> -8 | J13: =SIN(D13)+COS(E13) -> -0.5572668446 | K13: =$K$3+$J$3*D13+$I$3*E13 -> -0.7652589784 | L13: =$K$4+$J$4*D13+$I$4*E13+$H$4*F13+$G$4*G13 -> -0.7652589784 | M13: =$K$5+$J$5*D13+$I$5*E13+$H$5*F13+$G$5*G13+$F$5*H13+$E$5*I13 -> -0.2287095105
D14: -3 | E14: -1 | F14: 9 | G14: 1 | H14: -27 | I14: -1 | J14: =SIN(D14)+COS(E14) -> 0.3991822978 | K14: =$K$3+$J$3*D14+$I$3*E14 -> -0.7652589784 | L14: =$K$4+$J$4*D14+$I$4*E14+$H$4*F14+$G$4*G14 -> -0.1530540212 | M14: =$K$5+$J$5*D14+$I$5*E14+$H$5*F14+$G$5*G14+$F$5*H14+$E$5*I14 -> 0.3834954467
D15: -3 | E15: 0 | F15: 9 | G15: 0 | H15: -27 | I15: 0 | J15: =SIN(D15)+COS(E15) -> 0.8588799919 | K15: =$K$3+$J$3*D15+$I$3*E15 -> -0.7652589784 | L15: =$K$4+$J$4*D15+$I$4*E15+$H$4*F15+$G$4*G15 -> 0.05101429789 | M15: =$K$5+$J$5*D15+$I$5*E15+$H$5*F15+$G$5*G15+$F$5*H15+$E$5*I15 -> 0.5875637657
D16: -3 | E16: 1 | F16: 9 | G16: 1 | H16: -27 | I16: 1 | J16: =SIN(D16)+COS(E16) -> 0.3991822978 | K16: =$K$3+$J$3*D16+$I$3*E16 -> -0.7652589784 | L16: =$K$4+$J$4*D16+$I$4*E16+$H$4*F16+$G$4*G16 -> -0.1530540212 | M16: =$K$5+$J$5*D16+$I$5*E16+$H$5*F16+$G$5*G16+$F$5*H16+$E$5*I16 -> 0.3834954467
D17: -3 | E17: 2 | F17: 9 | G17: 4 | H17: -27 | I17: 8 | J17: =SIN(D17)+COS(E17) -> -0.5572668446 | K17: =$K$3+$J$3*D17+$I$3*E17 -> -0.7652589784 | L17: =$K$4+$J$4*D17+$I$4*E17+$H$4*F17+$G$4*G17 -> -0.7652589784 | M17: =$K$5+$J$5*D17+$I$5*E17+$H$5*F17+$G$5*G17+$F$5*H17+$E$5*I17 -> -0.2287095105
D18: -3 | E18: 3 | F18: 9 | G18: 9 | H18: -27 | I18: 27 | J18: =SIN(D18)+COS(E18) -> -1.131112505 | K18: =$K$3+$J$3*D18+$I$3*E18 -> -0.7652589784 | L18: =$K$4+$J$4*D18+$I$4*E18+$H$4*F18+$G$4*G18 -> -1.785600574 | M18: =$K$5+$J$5*D18+$I$5*E18+$H$5*F18+$G$5*G18+$F$5*H18+$E$5*I18 -> -1.249051106
D19: -2 | E19: -3 | F19: 4 | G19: 9 | H19: -8 | I19: -27 | J19: =SIN(D19)+COS(E19) -> -1.899289923 | K19: =$K$3+$J$3*D19+$I$3*E19 -> -0.5450142739 | L19: =$K$4+$J$4*D19+$I$4*E19+$H$4*F19+$G$4*G19 -> -1.565355869 | M19: =$K$5+$J$5*D19+$I$5*E19+$H$5*F19+$G$5*G19+$F$5*H19+$E$5*I19 -> -2.101905337
D20: -2 | E20: -2 | F20: 4 | G20: 4 | H20: -8 | I20: -8 | J20: =SIN(D20)+COS(E20) -> -1.325444263 | K20: =$K$3+$J$3*D20+$I$3*E20 -> -0.5450142739 | L20: =$K$4+$J$4*D20+$I$4*E20+$H$4*F20+$G$4*G20 -> -0.5450142739 | M20: =$K$5+$J$5*D20+$I$5*E20+$H$5*F20+$G$5*G20+$F$5*H20+$E$5*I20 -> -1.081563742
D21: -2 | E21: -1 | F21: 4 | G21: 1 | H21: -8 | I21: -1 | J21: =SIN(D21)+COS(E21) -> -0.368995121 | K21: =$K$3+$J$3*D21+$I$3*E21 -> -0.5450142739 | L21: =$K$4+$J$4*D21+$I$4*E21+$H$4*F21+$G$4*G21 -> 0.0671906833 | M21: =$K$5+$J$5*D21+$I$5*E21+$H$5*F21+$G$5*G21+$F$5*H21+$E$5*I21 -> -0.4693587846
D22: -2 | E22: 0 | F22: 4 | G22: 0 | H22: -8 | I22: 0 | J22: =SIN(D22)+COS(E22) -> 0.09070257317 | K22: =$K$3+$J$3*D22+$I$3*E22 -> -0.5450142739 | L22: =$K$4+$J$4*D22+$I$4*E22+$H$4*F22+$G$4*G22 -> 0.2712590024 | M22: =$K$5+$J$5*D22+$I$5*E22+$H$5*F22+$G$5*G22+$F$5*H22+$E$5*I22 -> -0.2652904655
D23: -2 | E23: 1 | F23: 4 | G23: 1 | H23: -8 | I23: 1 | J23: =SIN(D23)+COS(E23) -> -0.368995121 | K23: =$K$3+$J$3*D23+$I$3*E23 -> -0.5450142739 | L23: =$K$4+$J$4*D23+$I$4*E23+$H$4*F23+$G$4*G23 -> 0.0671906833 | M23: =$K$5+$J$5*D23+$I$5*E23+$H$5*F23+$G$5*G23+$F$5*H23+$E$5*I23 -> -0.4693587846
D24: -2 | E24: 2 | F24: 4 | G24: 4 | H24: -8 | I24: 8 | J24: =SIN(D24)+COS(E24) -> -1.325444263 | K24: =$K$3+$J$3*D24+$I$3*E24 -> -0.5450142739 | L24: =$K$4+$J$4*D24+$I$4*E24+$H$4*F24+$G$4*G24 -> -0.5450142739 | M24: =$K$5+$J$5*D24+$I$5*E24+$H$5*F24+$G$5*G24+$F$5*H24+$E$5*I24 -> -1.081563742
D25: -2 | E25: 3 | F25: 4 | G25: 9 | H25: -8 | I25: 27 | J25: =SIN(D25)+COS(E25) -> -1.899289923 | K25: =$K$3+$J$3*D25+$I$3*E25 -> -0.5450142739 | L25: =$K$4+$J$4*D25+$I$4*E25+$H$4*F25+$G$4*G25 -> -1.565355869 | M25: =$K$5+$J$5*D25+$I$5*E25+$H$5*F25+$G$5*G25+$F$5*H25+$E$5*I25 -> -2.101905337
D26: -1 | E26: -3 | F26: 1 | G26: 9 | H26: -1 | I26: -27 | J26: =SIN(D26)+COS(E26) -> -1.831463481 | K26: =$K$3+$J$3*D26+$I$3*E26 -> -0.3247695694 | L26: =$K$4+$J$4*D26+$I$4*E26+$H$4*F26+$G$4*G26 -> -1.345111165 | M26: =$K$5+$J$5*D26+$I$5*E26+$H$5*F26+$G$5*G26+$F$5*H26+$E$5*I26 -> -1.881660633
D27: -1 | E27: -2 | F27: 1 | G27: 4 | H27: -1 | I27: -8 | J27: =SIN(D27)+COS(E27) -> -1.257617821 | K27: =$K$3+$J$3*D27+$I$3*E27 -> -0.3247695694 | L27: =$K$4+$J$4*D27+$I$4*E27+$H$4*F27+$G$4*G27 -> -0.3247695694 | M27: =$K$5+$J$5*D27+$I$5*E27+$H$5*F27+$G$5*G27+$F$5*H27+$E$5*I27 -> -0.8613190373
D28: -1 | E28: -1 | F28: 1 | G28: 1 | H28: -1 | I28: -1 | J28: =SIN(D28)+COS(E28) -> -0.3011686789 | K28: =$K$3+$J$3*D28+$I$3*E28 -> -0.3247695694 | L28: =$K$4+$J$4*D28+$I$4*E28+$H$4*F28+$G$4*G28 -> 0.2874353878 | M28: =$K$5+$J$5*D28+$I$5*E28+$H$5*F28+$G$5*G28+$F$5*H28+$E$5*I28 -> -0.2491140801
D29: -1 | E29: 0 | F29: 1 | G29: 0 | H29: -1 | I29: 0 | J29: =SIN(D29)+COS(E29) -> 0.1585290152 | K29: =$K$3+$J$3*D29+$I$3*E29 -> -0.3247695694 | L29: =$K$4+$J$4*D29+$I$4*E29+$H$4*F29+$G$4*G29 -> 0.4915037068 | M29: =$K$5+$J$5*D29+$I$5*E29+$H$5*F29+$G$5*G29+$F$5*H29+$E$5*I29 -> -0.04504576102
D30: -1 | E30: 1 | F30: 1 | G30: 1 | H30: -1 | I30: 1 | J30: =SIN(D30)+COS(E30) -> -0.3011686789 | K30: =$K$3+$J$3*D30+$I$3*E30 -> -0.3247695694 | L30: =$K$4+$J$4*D30+$I$4*E30+$H$4*F30+$G$4*G30 -> 0.2874353878 | M30: =$K$5+$J$5*D30+$I$5*E30+$H$5*F30+$G$5*G30+$F$5*H30+$E$5*I30 -> -0.2491140801
D31: -1 | E31: 2 | F31: 1 | G31: 4 | H31: -1 | I31: 8 | J31: =SIN(D31)+COS(E31) -> -1.257617821 | K31: =$K$3+$J$3*D31+$I$3*E31 -> -0.3247695694 | L31: =$K$4+$J$4*D31+$I$4*E31+$H$4*F31+$G$4*G31 -> -0.3247695694 | M31: =$K$5+$J$5*D31+$I$5*E31+$H$5*F31+$G$5*G31+$F$5*H31+$E$5*I31 -> -0.8613190373
D32: -1 | E32: 3 | F32: 1 | G32: 9 | H32: -1 | I32: 27 | J32: =SIN(D32)+COS(E32) -> -1.831463481 | K32: =$K$3+$J$3*D32+$I$3*E32 -> -0.3247695694 | L32: =$K$4+$J$4*D32+$I$4*E32+$H$4*F32+$G$4*G32 -> -1.345111165 | M32: =$K$5+$J$5*D32+$I$5*E32+$H$5*F32+$G$5*G32+$F$5*H32+$E$5*I32 -> -1.881660633
D33: 0 | E33: -3 | F33: 0 | G33: 9 | H33: 0 | I33: -27 | J33: =SIN(D33)+COS(E33) -> -0.9899924966 | K33: =$K$3+$J$3*D33+$I$3*E33 -> -0.1045248649 | L33: =$K$4+$J$4*D33+$I$4*E33+$H$4*F33+$G$4*G33 -> -1.12486646 | M33: =$K$5+$J$5*D33+$I$5*E33+$H$5*F33+$G$5*G33+$F$5*H33+$E$5*I33 -> -1.12486646
D34: 0 | E34: -2 | F34: 0 | G34: 4 | H34: 0 | I34: -8 | J34: =SIN(D34)+COS(E34) -> -0.4161468365 | K34: =$K$3+$J$3*D34+$I$3*E34 -> -0.1045248649 | L34: =$K$4+$J$4*D34+$I$4*E34+$H$4*F34+$G$4*G34 -> -0.1045248649 | M34: =$K$5+$J$5*D34+$I$5*E34+$H$5*F34+$G$5*G34+$F$5*H34+$E$5*I34 -> -0.1045248649
D35: 0 | E35: -1 | F35: 0 | G35: 1 | H35: 0 | I35: -1 | J35: =SIN(D35)+COS(E35) -> 0.5403023059 | K35: =$K$3+$J$3*D35+$I$3*E35 -> -0.1045248649 | L35: =$K$4+$J$4*D35+$I$4*E35+$H$4*F35+$G$4*G35 -> 0.5076800922 | M35: =$K$5+$J$5*D35+$I$5*E35+$H$5*F35+$G$5*G35+$F$5*H35+$E$5*I35 -> 0.5076800922
D36: 0 | E36: 0 | F36: 0 | G36: 0 | H36: 0 | I36: 0 | J36: =SIN(D36)+COS(E36) -> 1 | K36: =$K$3+$J$3*D36+$I$3*E36 -> -0.1045248649 | L36: =$K$4+$J$4*D36+$I$4*E36+$H$4*F36+$G$4*G36 -> 0.7117484113 | M36: =$K$5+$J$5*D36+$I$5*E36+$H$5*F36+$G$5*G36+$F$5*H36+$E$5*I36 -> 0.7117484113
D37: 0 | E37: 1 | F37: 0 | G37: 1 | H37: 0 | I37: 1 | J37: =SIN(D37)+COS(E37) -> 0.5403023059 | K37: =$K$3+$J$3*D37+$I$3*E37 -> -0.1045248649 | L37: =$K$4+$J$4*D37+$I$4*E37+$H$4*F37+$G$4*G37 -> 0.5076800922 | M37: =$K$5+$J$5*D37+$I$5*E37+$H$5*F37+$G$5*G37+$F$5*H37+$E$5*I37 -> 0.5076800922
D38: 0 | E38: 2 | F38: 0 | G38: 4 | H38: 0 | I38: 8 | J38: =SIN(D38)+COS(E38) -> -0.4161468365 | K38: =$K$3+$J$3*D38+$I$3*E38 -> -0.1045248649 | L38: =$K$4+$J$4*D38+$I$4*E38+$H$4*F38+$G$4*G38 -> -0.1045248649 | M38: =$K$5+$J$5*D38+$I$5*E38+$H$5*F38+$G$5*G38+$F$5*H38+$E$5*I38 -> -0.1045248649
D39: 0 | E39: 3 | F39: 0 | G39: 9 | H39: 0 | I39: 27 | J39: =SIN(D39)+COS(E39) -> -0.9899924966 | K39: =$K$3+$J$3*D39+$I$3*E39 -> -0.1045248649 | L39: =$K$4+$J$4*D39+$I$4*E39+$H$4*F39+$G$4*G39 -> -1.12486646 | M39: =$K$5+$J$5*D39+$I$5*E39+$H$5*F39+$G$5*G39+$F$5*H39+$E$5*I39 -> -1.12486646
D40: 1 | E40: -3 | F40: 1 | G40: 9 | H40: 1 | I40: -27 | J40: =SIN(D40)+COS(E40) -> -0.1485215118 | K40: =$K$3+$J$3*D40+$I$3*E40 -> 0.1157198395 | L40: =$K$4+$J$4*D40+$I$4*E40+$H$4*F40+$G$4*G40 -> -0.9046217558 | M40: =$K$5+$J$5*D40+$I$5*E40+$H$5*F40+$G$5*G40+$F$5*H40+$E$5*I40 -> -0.3680722879
D41: 1 | E41: -2 | F41: 1 | G41: 4 | H41: 1 | I41: -8 | J41: =SIN(D41)+COS(E41) -> 0.4253241483 | K41: =$K$3+$J$3*D41+$I$3*E41 -> 0.1157198395 | L41: =$K$4+$J$4*D41+$I$4*E41+$H$4*F41+$G$4*G41 -> 0.1157198395 | M41: =$K$5+$J$5*D41+$I$5*E41+$H$5*F41+$G$5*G41+$F$5*H41+$E$5*I41 -> 0.6522693074
D42: 1 | E42: -1 | F42: 1 | G42: 1 | H42: 1 | I42: -1 | J42: =SIN(D42)+COS(E42) -> 1.381773291 | K42: =$K$3+$J$3*D42+$I$3*E42 -> 0.1157198395 | L42: =$K$4+$J$4*D42+$I$4*E42+$H$4*F42+$G$4*G42 -> 0.7279247967 | M42: =$K$5+$J$5*D42+$I$5*E42+$H$5*F42+$G$5*G42+$F$5*H42+$E$5*I42 -> 1.264474265
D43: 1 | E43: 0 | F43: 1 | G43: 0 | H43: 1 | I43: 0 | J43: =SIN(D43)+COS(E43) -> 1.841470985 | K43: =$K$3+$J$3*D43+$I$3*E43 -> 0.1157198395 | L43: =$K$4+$J$4*D43+$I$4*E43+$H$4*F43+$G$4*G43 -> 0.9319931158 | M43: =$K$5+$J$5*D43+$I$5*E43+$H$5*F43+$G$5*G43+$F$5*H43+$E$5*I43 -> 1.468542584
D44: 1 | E44: 1 | F44: 1 | G44: 1 | H44: 1 | I44: 1 | J44: =SIN(D44)+COS(E44) -> 1.381773291 | K44: =$K$3+$J$3*D44+$I$3*E44 -> 0.1157198395 | L44: =$K$4+$J$4*D44+$I$4*E44+$H$4*F44+$G$4*G44 -> 0.7279247967 | M44: =$K$5+$J$5*D44+$I$5*E44+$H$5*F44+$G$5*G44+$F$5*H44+$E$5*I44 -> 1.264474265
D45: 1 | E45: 2 | F45: 1 | G45: 4 | H45: 1 | I45: 8 | J45: =SIN(D45)+COS(E45) -> 0.4253241483 | K45: =$K$3+$J$3*D45+$I$3*E45 -> 0.1157198395 | L45: =$K$4+$J$4*D45+$I$4*E45+$H$4*F45+$G$4*G45 -> 0.1157198395 | M45: =$K$5+$J$5*D45+$I$5*E45+$H$5*F45+$G$5*G45+$F$5*H45+$E$5*I45 -> 0.6522693074
D46: 1 | E46: 3 | F46: 1 | G46: 9 | H46: 1 | I46: 27 | J46: =SIN(D46)+COS(E46) -> -0.1485215118 | K46: =$K$3+$J$3*D46+$I$3*E46 -> 0.1157198395 | L46: =$K$4+$J$4*D46+$I$4*E46+$H$4*F46+$G$4*G46 -> -0.9046217558 | M46: =$K$5+$J$5*D46+$I$5*E46+$H$5*F46+$G$5*G46+$F$5*H46+$E$5*I46 -> -0.3680722879
D47: 2 | E47: -3 | F47: 4 | G47: 9 | H47: 8 | I47: -27 | J47: =SIN(D47)+COS(E47) -> -0.08069506977 | K47: =$K$3+$J$3*D47+$I$3*E47 -> 0.335964544 | L47: =$K$4+$J$4*D47+$I$4*E47+$H$4*F47+$G$4*G47 -> -0.6843770513 | M47: =$K$5+$J$5*D47+$I$5*E47+$H$5*F47+$G$5*G47+$F$5*H47+$E$5*I47 -> -0.1478275834
D48: 2 | E48: -2 | F48: 4 | G48: 4 | H48: 8 | I48: -8 | J48: =SIN(D48)+COS(E48) -> 0.4931505903 | K48: =$K$3+$J$3*D48+$I$3*E48 -> 0.335964544 | L48: =$K$4+$J$4*D48+$I$4*E48+$H$4*F48+$G$4*G48 -> 0.335964544 | M48: =$K$5+$J$5*D48+$I$5*E48+$H$5*F48+$G$5*G48+$F$5*H48+$E$5*I48 -> 0.8725140119
D49: 2 | E49: -1 | F49: 4 | G49: 1 | H49: 8 | I49: -1 | J49: =SIN(D49)+COS(E49) -> 1.449599733 | K49: =$K$3+$J$3*D49+$I$3*E49 -> 0.335964544 | L49: =$K$4+$J$4*D49+$I$4*E49+$H$4*F49+$G$4*G49 -> 0.9481695012 | M49: =$K$5+$J$5*D49+$I$5*E49+$H$5*F49+$G$5*G49+$F$5*H49+$E$5*I49 -> 1.484718969
D50: 2 | E50: 0 | F50: 4 | G50: 0 | H50: 8 | I50: 0 | J50: =SIN(D50)+COS(E50) -> 1.909297427 | K50: =$K$3+$J$3*D50+$I$3*E50 -> 0.335964544 | L50: =$K$4+$J$4*D50+$I$4*E50+$H$4*F50+$G$4*G50 -> 1.15223782 | M50: =$K$5+$J$5*D50+$I$5*E50+$H$5*F50+$G$5*G50+$F$5*H50+$E$5*I50 -> 1.688787288
D51: 2 | E51: 1 | F51: 4 | G51: 1 | H51: 8 | I51: 1 | J51: =SIN(D51)+COS(E51) -> 1.449599733 | K51: =$K$3+$J$3*D51+$I$3*E51 -> 0.335964544 | L51: =$K$4+$J$4*D51+$I$4*E51+$H$4*F51+$G$4*G51 -> 0.9481695012 | M51: =$K$5+$J$5*D51+$I$5*E51+$H$5*F51+$G$5*G51+$F$5*H51+$E$5*I51 -> 1.484718969
D52: 2 | E52: 2 | F52: 4 | G52: 4 | H52: 8 | I52: 8 | J52: =SIN(D52)+COS(E52) -> 0.4931505903 | K52: =$K$3+$J$3*D52+$I$3*E52 -> 0.335964544 | L52: =$K$4+$J$4*D52+$I$4*E52+$H$4*F52+$G$4*G52 -> 0.335964544 | M52: =$K$5+$J$5*D52+$I$5*E52+$H$5*F52+$G$5*G52+$F$5*H52+$E$5*I52 -> 0.8725140119
D53: 2 | E53: 3 | F53: 4 | G53: 9 | H53: 8 | I53: 27 | J53: =SIN(D53)+COS(E53) -> -0.08069506977 | K53: =$K$3+$J$3*D53+$I$3*E53 -> 0.335964544 | L53: =$K$4+$J$4*D53+$I$4*E53+$H$4*F53+$G$4*G53 -> -0.6843770513 | M53: =$K$5+$J$5*D53+$I$5*E53+$H$5*F53+$G$5*G53+$F$5*H53+$E$5*I53 -> -0.1478275834
D54: 3 | E54: -3 | F54: 9 | G54: 9 | H54: 27 | I54: -27 | J54: =SIN(D54)+COS(E54) -> -0.8488724885 | K54: =$K$3+$J$3*D54+$I$3*E54 -> 0.5562092485 | L54: =$K$4+$J$4*D54+$I$4*E54+$H$4*F54+$G$4*G54 -> -0.4641323468 | M54: =$K$5+$J$5*D54+$I$5*E54+$H$5*F54+$G$5*G54+$F$5*H54+$E$5*I54 -> -1.000681815
D55: 3 | E55: -2 | F55: 9 | G55: 4 | H55: 27 | I55: -8 | J55: =SIN(D55)+COS(E55) -> -0.2750268285 | K55: =$K$3+$J$3*D55+$I$3*E55 -> 0.5562092485 | L55: =$K$4+$J$4*D55+$I$4*E55+$H$4*F55+$G$4*G55 -> 0.5562092485 | M55: =$K$5+$J$5*D55+$I$5*E55+$H$5*F55+$G$5*G55+$F$5*H55+$E$5*I55 -> 0.01965978063
D56: 3 | E56: -1 | F56: 9 | G56: 1 | H56: 27 | I56: -1 | J56: =SIN(D56)+COS(E56) -> 0.6814223139 | K56: =$K$3+$J$3*D56+$I$3*E56 -> 0.5562092485 | L56: =$K$4+$J$4*D56+$I$4*E56+$H$4*F56+$G$4*G56 -> 1.168414206 | M56: =$K$5+$J$5*D56+$I$5*E56+$H$5*F56+$G$5*G56+$F$5*H56+$E$5*I56 -> 0.6318647378
D57: 3 | E57: 0 | F57: 9 | G57: 0 | H57: 27 | I57: 0 | J57: =SIN(D57)+COS(E57) -> 1.141120008 | K57: =$K$3+$J$3*D57+$I$3*E57 -> 0.5562092485 | L57: =$K$4+$J$4*D57+$I$4*E57+$H$4*F57+$G$4*G57 -> 1.372482525 | M57: =$K$5+$J$5*D57+$I$5*E57+$H$5*F57+$G$5*G57+$F$5*H57+$E$5*I57 -> 0.8359330569
D58: 3 | E58: 1 | F58: 9 | G58: 1 | H58: 27 | I58: 1 | J58: =SIN(D58)+COS(E58) -> 0.6814223139 | K58: =$K$3+$J$3*D58+$I$3*E58 -> 0.5562092485 | L58: =$K$4+$J$4*D58+$I$4*E58+$H$4*F58+$G$4*G58 -> 1.168414206 | M58: =$K$5+$J$5*D58+$I$5*E58+$H$5*F58+$G$5*G58+$F$5*H58+$E$5*I58 -> 0.6318647378
D59: 3 | E59: 2 | F59: 9 | G59: 4 | H59: 27 | I59: 8 | J59: =SIN(D59)+COS(E59) -> -0.2750268285 | K59: =$K$3+$J$3*D59+$I$3*E59 -> 0.5562092485 | L59: =$K$4+$J$4*D59+$I$4*E59+$H$4*F59+$G$4*G59 -> 0.5562092485 | M59: =$K$5+$J$5*D59+$I$5*E59+$H$5*F59+$G$5*G59+$F$5*H59+$E$5*I59 -> 0.01965978063
D60: 3 | E60: 3 | F60: 9 | G60: 9 | H60: 27 | I60: 27 | J60: =SIN(D60)+COS(E60) -> -0.8488724885 | K60: =$K$3+$J$3*D60+$I$3*E60 -> 0.5562092485 | L60: =$K$4+$J$4*D60+$I$4*E60+$H$4*F60+$G$4*G60 -> -0.4641323468 | M60: =$K$5+$J$5*D60+$I$5*E60+$H$5*F60+$G$5*G60+$F$5*H60+$E$5*I60 -> -1.000681815
N62: SS2= | O62: =SUMXMY2(J12:J60,L12:L60) -> 14.47053727
N63: ss0= | O63: =_xlfn.VAR.S(J12:J60)*48 -> 48.46465308 | P63: =O63/49 -> 0.9890745526
N64: ssModel= | O64: =O63-O62 -> 33.99411581 | P64: =O64/5 -> 6.798823162
F65: x1
F66: -3 | G66: -2 | H66: -1 | I66: 0 | J66: 1 | K66: 2 | L66: 3 | P66: =P64/P63 -> 6.873923856
D67: x2 | E67: -3 | F67: =SIN(F$66)+COS($E67) -> -1.131112505 | G67: =SIN(G$66)+COS($E67) -> -1.899289923 | H67: -1.831463481 | I67: -0.9899924966 | J67: -0.1485215118 | K67: -0.08069506977 | L67: -0.8488724885 | P67: =_xlfn.F.INV.RT(0.05,4,48) -> 2.565240508
E68: -2 | F68: =SIN(F$66)+COS($E68) -> -0.5572668446 | G68: -1.325444263 | H68: -1.257617821 | I68: -0.4161468365 | J68: 0.4253241483 | K68: 0.4931505903 | L68: -0.2750268285
E69: -1 | F69: 0.3991822978 | G69: -0.368995121 | H69: -0.3011686789 | I69: 0.5403023059 | J69: 1.381773291 | K69: 1.449599733 | L69: 0.6814223139
E70: 0 | F70: 0.8588799919 | G70: 0.09070257317 | H70: 0.1585290152 | I70: 1 | J70: 1.841470985 | K70: 1.909297427 | L70: 1.141120008
E71: 1 | F71: 0.3991822978 | G71: -0.368995121 | H71: -0.3011686789 | I71: 0.5403023059 | J71: 1.381773291 | K71: 1.449599733 | L71: 0.6814223139
E72: 2 | F72: -0.5572668446 | G72: -1.325444263 | H72: -1.257617821 | I72: -0.4161468365 | J72: 0.4253241483 | K72: 0.4931505903 | L72: -0.2750268285
E73: 3 | F73: -1.131112505 | G73: -1.899289923 | H73: -1.831463481 | I73: -0.9899924966 | J73: -0.1485215118 | K73: -0.08069506977 | L73: -0.8488724885
